bitfinex/quotes_BTCUSD_20210101
["timestamp","ask_amount","ask_price","bid_price","bid_amount"]
[1609474899130,0.11521108,29371.0,29369.0,0.01074604]
[1609474899526,1.194581,29370.0,29369.0,0.01074604]
[1609474899728,0.94844135,29370.0,29369.0,0.01074604]
[1609474901630,0.11524135,29370.0,29369.0,0.06919004]
[1609474902230,0.12060257,29372.0,29369.0,0.06919004]
[1609474902434,0.12060257,29372.0,29369.0,0.01074604]
[1609474902631,0.95380257,29372.0,29369.0,0.01074604]
[1609474902830,0.16,29371.0,29369.0,0.01074604]
[1609474903552,0.28049566,29371.0,29369.0,0.01074604]
[1609474903953,0.12049602,29370.0,29369.0,0.01074604]
[1609474904354,0.12049602,29370.0,29369.0,0.06918804]
[1609474904555,1.31507702,29370.0,29369.0,0.01074604]
[1609474904759,1.53507702,29370.0,29369.0,0.01074604]
[1609474904958,2.23507702,29370.0,29369.0,0.01074604]
[1609474905357,1.53507702,29370.0,29369.0,0.01074604]
[1609474907722,0.70187702,29370.0,29369.0,0.01074604]
[1609474908022,1.70187702,29370.0,29369.0,0.01074604]
[1609474908223,0.70187702,29370.0,29369.0,0.01074604]
[1609474909031,1.50187702,29370.0,29369.0,0.01074604]
[1609474909629,2.33507702,29370.0,29369.0,0.01074604]
[1609474911329,1.53507702,29370.0,29369.0,0.01074604]
[1609474912856,2.13507702,29370.0,29369.0,0.01074604]
[1609474913159,1.53507702,29370.0,29369.0,0.01074604]
[1609474913358,1.53507702,29370.0,29369.0,0.11074604]
[1609474915464,1.31507702,29370.0,29369.0,0.11074604]
[1609474916162,1.31407702,29370.0,29369.0,0.11074604]
[1609474917368,1.4384336,29370.0,29369.0,0.11074604]
[1609474918487,1.4384336,29370.0,29369.0,0.01074604]
[1609474918988,1.6384336,29370.0,29369.0,0.01074604]
[1609474919387,1.7384336,29370.0,29369.0,0.01074604]
[1609474919994,1.6384336,29370.0,29369.0,0.01074604]
[1609474920289,1.51407702,29370.0,29369.0,0.01074604]
[1609474920592,1.61407702,29370.0,29369.0,0.01074604]
[1609474922196,1.51407702,29370.0,29369.0,0.01074604]
[1609474922665,1.15269602,29370.0,29369.0,0.06919004]
[1609474922863,0.95269602,29370.0,29369.0,0.06919004]
[1609474923165,0.95269602,29370.0,29369.0,0.01074604]
[1609474923364,1.07706384,29370.0,29369.0,0.01074604]
[1609474923763,1.43844484,29370.0,29369.0,0.01074604]
[1609474923971,1.07706384,29370.0,29369.0,0.01074604]
[1609474924173,1.07706384,29370.0,29369.0,0.06919004]
[1609474924477,0.86524484,29370.0,29369.0,0.01074604]
[1609474924777,1.69844484,29370.0,29369.0,0.01074604]
[1609474925379,1.57407702,29370.0,29369.0,0.01074604]
[1609474925578,1.57407702,29370.0,29369.0,0.06919004]
[1609474925579,1.11269602,29370.0,29369.0,0.06919004]
[1609474925779,1.11269602,29370.0,29369.0,0.57949004]
[1609474926176,0.95269602,29370.0,29369.0,0.57949004]
[1609474926674,0.11949602,29370.0,29369.0,0.57949004]
[1609474926876,0.01949602,29370.0,29369.0,0.57449004]
[1609474928205,0.52587702,29370.0,29369.0,0.51604604]
[1609474928503,1.35907702,29370.0,29369.0,0.51604604]
[1609474931905,1.34907702,29370.0,29369.0,0.51604604]
[1609474932705,1.20407702,29370.0,29369.0,0.51604604]
[1609474933329,0.84269602,29370.0,29369.0,0.51604604]
[1609474933532,0.00949602,29370.0,29369.0,0.57449004]
[1609474934332,0.00949602,29370.0,29369.0,0.94868399]
[1609474934538,0.95296263,29371.0,29370.0,3.75]
[1609474934736,0.11976263,29371.0,29370.0,4.63344]
[1609474934937,0.8772,29375.0,29370.0,4.63344]
[1609474935138,0.33172641,29379.0,29374.0,0.23931911]
[1609474935343,0.8329,29380.0,29377.0,0.058413]
[1609474935542,0.42974596,29385.0,29377.0,0.45799695]
[1609474935742,0.42974596,29385.0,29377.0,0.65496534]
[1609474935942,0.42974596,29385.0,29378.0,0.1]
[1609474936144,0.0002,29384.0,29383.0,3.29196667]
[1609474936345,0.0016,29390.0,29384.0,3.75]
[1609474936542,0.0016,29390.0,29389.0,0.19924334]
[1609474936742,0.0016,29390.0,29389.0,0.40365334]
[1609474936935,0.0016,29390.0,29389.0,0.46201334]
[1609474937696,0.0016,29390.0,29389.0,0.26277]
[1609474938290,0.0016,29390.0,29389.0,0.36277]
[1609474938486,0.0016,29390.0,29389.0,0.50777]
[1609474938690,0.01192238,29390.0,29389.0,2.00777]
[1609474938885,0.00572895,29390.0,29389.0,0.50777]
[1609474939090,0.00779325,29390.0,29389.0,0.50777]
[1609474939489,0.00572895,29390.0,29389.0,0.50777]
[1609474939894,0.00366414,29390.0,29389.0,0.50777]
[1609474940292,0.00366414,29390.0,29389.0,0.51850862]
[1609474940599,0.0016,29390.0,29389.0,1.11850862]
[1609474940791,0.0016,29390.0,29389.0,0.35135]
[1609474941394,0.0016,29390.0,29389.0,0.15635]
[1609474942094,0.0016,29390.0,29388.0,0.6798]
[1609474942296,0.0018,29390.0,29388.0,0.6798]
[1609474943530,4.11439661,29389.0,29388.0,0.6798]
[1609474943727,4.87939661,29389.0,29382.0,0.99024563]
[1609474943928,0.20303161,29388.0,29382.0,0.99024563]
[1609474944126,0.76303161,29387.0,29382.0,0.99024563]
[1609474944526,0.76323161,29387.0,29382.0,0.99024563]
[1609474944726,0.00323161,29387.0,29382.0,0.99024563]
[1609474944930,0.00323161,29389.0,29383.0,0.19528395]
[1609474945828,0.00323161,29389.0,29382.0,0.99024563]
[1609474946027,0.00323161,29389.0,29383.0,0.5101]
[1609474946426,0.00323161,29389.0,29384.0,0.25]
[1609474946628,0.0002,29389.0,29384.0,0.43445]
[1609474946826,0.00502823,29390.0,29384.0,0.43445]
[1609474946827,0.00219662,29390.0,29384.0,0.43445]
[1609474947224,0.00219662,29390.0,29384.0,0.18445]
[1609474948450,0.00219662,29390.0,29383.0,0.88681395]
[1609474948653,0.00522823,29390.0,29383.0,0.80394395]
[1609474949357,0.10303161,29389.0,29383.0,0.5101]
[1609474949554,0.93583161,29389.0,29383.0,0.5101]
[1609474949855,0.14,29388.0,29384.0,0.00045333]
[1609474950053,0.1,29387.0,29384.0,0.00045333]
[1609474950556,0.0002,29387.0,29384.0,0.00045333]
[1609474950955,0.1402,29388.0,29384.0,0.00045333]
[1609474951852,0.0002,29388.0,29384.0,0.00045333]
[1609474952055,0.0002,29389.0,29384.0,0.00045333]
[1609474952854,0.83782823,29390.0,29384.0,0.00045333]
[1609474953552,0.14,29388.0,29384.0,0.00045333]
[1609474953756,0.14303161,29388.0,29384.0,0.00045333]
[1609474954363,0.14323161,29388.0,29384.0,0.00045333]
[1609474954562,0.97593161,29388.0,29384.0,0.00045333]
[1609474954764,0.83593161,29388.0,29384.0,0.00045333]
[1609474956269,0.8329,29388.0,29384.0,0.00045333]
[1609474956971,0.8329,29388.0,29385.0,0.19528395]
[1609474957170,0.8329,29388.0,29384.0,0.11703333]
[1609474957576,0.0002,29388.0,29385.0,0.18]
[1609474957785,0.00057927,29389.0,29385.0,0.18]
[1609474958186,0.00057927,29389.0,29385.0,0.56511956]
[1609474958387,0.00057927,29389.0,29385.0,1.56511956]
[1609474958590,0.00057927,29389.0,29386.0,0.38511956]
[1609474958793,0.00057927,29389.0,29387.0,0.38511956]
[1609474959188,0.00057927,29389.0,29386.0,0.65011956]
[1609474959587,0.00057927,29389.0,29387.0,0.38511956]
[1609474959994,0.00056241,29389.0,29388.0,1.895]
[1609474960192,0.00036241,29389.0,29388.0,1.895]
[1609474961191,0.00036241,29389.0,29388.0,1.80322249]
[1609474962389,0.00036241,29389.0,29388.0,0.47]
[1609474962594,0.00036241,29389.0,29387.0,0.38907804]
[1609474962795,0.00056241,29389.0,29387.0,1.00045328]
[1609474962995,0.00056241,29389.0,29388.0,0.5098]
[1609474963200,0.00056241,29389.0,29388.0,0.7748]
[1609474963408,0.00036241,29389.0,29388.0,0.7748]
[1609474964117,0.00036241,29389.0,29388.0,0.91534535]
[1609474964814,0.10036241,29389.0,29388.0,0.91534535]
[1609474965017,0.10036241,29389.0,29388.0,0.65034535]
[1609474965018,0.46682449,29389.0,29388.0,0.65034535]
[1609474965319,0.46682449,29389.0,29387.0,0.00045328]
[1609474965320,0.361365,29388.0,29387.0,0.00045328]
[1609474965516,0.36439661,29388.0,29387.0,0.00045328]
[1609474965715,0.37060064,29388.0,29387.0,0.00045328]
[1609474965920,0.37060064,29388.0,29383.0,0.50210328]
[1609474965921,0.48732467,29388.0,29383.0,0.50210328]
[1609474966112,0.48752467,29388.0,29383.0,0.50210328]
[1609474966313,0.48752467,29388.0,29382.0,0.14054535]
[1609474966523,0.00716969,29384.0,29382.0,0.14054535]
[1609474966720,0.00206902,29383.0,29382.0,0.14054535]
[1609474967115,0.00620722,29384.0,29382.0,0.14054535]
[1609474967315,0.00620722,29384.0,29381.0,0.33554535]
[1609474967811,0.00413867,29383.0,29381.0,0.33554535]
[1609474968107,0.00413888,29382.0,29381.0,0.33554535]
[1609474968507,0.00620853,29382.0,29381.0,0.33554535]
[1609474968709,0.00413888,29382.0,29381.0,0.195]
[1609474969122,0.1229381,29385.0,29381.0,0.195]
[1609474969521,0.00620909,29382.0,29381.0,0.195]
[1609474969723,0.00620909,29382.0,29380.0,0.51]
[1609474969921,0.0020697,29382.0,29380.0,0.51]
[1609474970322,0.00413939,29382.0,29381.0,1.075]
[1609474971019,0.00413939,29382.0,29381.0,0.325]
[1609474972224,0.0062086,29382.0,29381.0,1.275]
[1609474973044,0.0062086,29382.0,29381.0,1.41554535]
[1609474973242,0.0062086,29382.0,29381.0,0.46554535]
[1609474974345,0.0062086,29382.0,29381.0,2.075]
[1609474975743,0.0062086,29382.0,29381.0,0.325]
[1609474976448,0.0062086,29382.0,29380.0,0.51]
[1609474977050,0.0062085,29381.0,29380.0,0.51]
[1609474977243,0.0062085,29381.0,29380.0,1.91]
[1609474977442,0.0062085,29381.0,29380.0,0.51]
[1609474977644,0.0062085,29381.0,29380.0,0.665]
[1609474978245,0.0062085,29381.0,29380.0,0.66]
[1609474978463,0.0062085,29381.0,29380.0,0.505]
[1609474980768,0.12297889,29382.0,29380.0,0.505]
[1609474981366,0.00620767,29381.0,29380.0,0.505]
[1609474985828,0.00620767,29381.0,29380.0,0.506]
[1609474988047,0.00413697,29381.0,29380.0,0.506]
[1609474988244,0.00413697,29381.0,29380.0,0.505]
[1609474988445,0.01034247,29381.0,29380.0,0.505]
[1609474988745,0.0062055,29381.0,29380.0,0.506]
[1609474990346,0.7196874,29382.0,29380.0,0.506]
[1609474990646,0.7196874,29382.0,29380.0,0.496]
[1609474991950,0.7196874,29382.0,29381.0,0.01447123]
[1609474992257,0.8196874,29382.0,29381.0,0.01447123]
[1609474992758,2.47795637,29382.0,29381.0,0.01447123]
[1609474993051,3.08545798,29382.0,29381.0,0.01447123]
[1609474993497,3.1189261,29382.0,29381.0,0.01447123]
[1609474993796,4.37226131,29382.0,29381.0,0.01447123]
[1609474993998,4.89226131,29382.0,29381.0,0.01447123]
[1609474994397,5.89226131,29382.0,29381.0,0.01447123]
[1609474994695,6.22406433,29382.0,29381.0,0.01447123]
[1609474994897,5.59918433,29382.0,29381.0,0.01447123]
[1609474995896,5.26738131,29382.0,29381.0,0.01447123]
[1609474996194,6.59918433,29382.0,29381.0,0.01447123]
[1609474996796,6.58918433,29382.0,29381.0,0.01447123]
[1609474996996,6.25738131,29382.0,29381.0,0.01547123]
[1609474997419,6.77738131,29382.0,29381.0,0.01547123]
[1609474999748,6.25738131,29382.0,29381.0,0.01447123]
[1609474999949,6.25738131,29382.0,29381.0,0.01547123]
[1609475000651,6.77738131,29382.0,29381.0,0.01547123]
[1609475000851,7.10918433,29382.0,29381.0,0.01547123]
[1609475001050,6.77738131,29382.0,29381.0,0.01547123]
[1609475002452,6.25738131,29382.0,29381.0,0.01547123]
[1609475002976,6.25738131,29382.0,29381.0,0.01447123]
[1609475003274,6.25738131,29382.0,29381.0,0.01547123]
[1609475004179,3.74817333,29382.0,29381.0,0.01547123]
[1609475004379,3.61470521,29382.0,29381.0,0.01547123]
[1609475004792,3.85930529,29382.0,29381.0,0.01547123]
[1609475005080,2.85930529,29382.0,29381.0,0.01547123]
[1609475005978,1.85930529,29382.0,29381.0,0.01547123]
[1609475006181,2.15930529,29382.0,29381.0,0.01547123]
[1609475009606,2.66950529,29382.0,29381.0,0.01547123]
[1609475010902,3.61950529,29382.0,29381.0,0.01547123]
[1609475011101,3.65297341,29382.0,29381.0,0.01547123]
[1609475012605,2.70297341,29382.0,29381.0,0.01547123]
[1609475012878,3.50297341,29382.0,29381.0,0.01547123]
[1609475013779,3.50297341,29382.0,29381.0,0.01047123]
[1609475014192,2.70297341,29382.0,29381.0,0.01047123]
[1609475015293,3.70297341,29382.0,29381.0,0.01047123]
[1609475015491,4.22297341,29382.0,29381.0,0.01047123]
[1609475015693,3.70297341,29382.0,29381.0,0.01047123]
[1609475016494,4.22297341,29382.0,29381.0,0.01047123]
[1609475016695,3.70297341,29382.0,29381.0,0.01047123]
[1609475017294,3.70297341,29382.0,29381.0,0.01297625]
[1609475018026,4.22297341,29382.0,29362.0,0.99064535]
[1609475018230,1.0,29375.0,29364.0,1.4476]
[1609475018429,0.72664114,29374.0,29364.0,1.1755]
[1609475018631,0.8332,29366.0,29364.0,0.6652]
[1609475018837,0.36137,29365.0,29363.0,1.0]
[1609475019124,1.04238,29366.0,29362.0,0.36137]
[1609475019326,0.36137,29365.0,29359.0,0.9537]
[1609475019531,0.88317302,29365.0,29359.0,0.0006]
[1609475019843,0.69317302,29363.0,29359.0,0.0006]
[1609475020329,0.36137,29363.0,29361.0,0.00068813]
[1609475020632,0.36137,29363.0,29358.0,0.00068813]
[1609475020633,2.5681521,29360.0,29358.0,0.00068813]
[1609475020831,0.69317302,29359.0,29358.0,0.00068813]
[1609475021031,0.55137,29359.0,29358.0,0.00068813]
[1609475021531,0.55137,29359.0,29358.0,0.10302784]
[1609475021731,1.38487,29359.0,29358.0,0.10302784]
[1609475022732,1.38487,29359.0,29358.0,0.11377793]
[1609475023134,1.38694097,29359.0,29358.0,0.01143822]
[1609475024045,1.38901211,29359.0,29358.0,0.01143822]
[1609475024243,1.71667302,29359.0,29358.0,0.01143822]
[1609475025347,1.38487,29359.0,29358.0,0.01172176]
[1609475025544,1.38487,29359.0,29358.0,0.46172176]
[1609475026751,0.55137,29359.0,29358.0,0.46172176]
[1609475027648,0.55137,29359.0,29358.0,1.46172176]
[1609475028105,0.19,29359.0,29358.0,1.46172176]
[1609475028305,0.8334,29360.0,29358.0,1.46172176]
[1609475028612,0.36137,29359.0,29358.0,0.46172176]
[1609475029321,0.83449662,29360.0,29358.0,0.46172176]
[1609475029626,0.00109662,29360.0,29358.0,2.31172176]
[1609475029824,0.00109662,29360.0,29359.0,0.96137]
[1609475030222,0.00109662,29360.0,29358.0,0.46172176]
[1609475030423,0.00109662,29360.0,29358.0,1.46172176]
[1609475030623,0.00109662,29360.0,29359.0,0.36137]
[1609475031224,0.00109662,29360.0,29359.0,1.01137]
[1609475031423,0.00109662,29360.0,29358.0,0.46172176]
[1609475031723,0.00109662,29360.0,29359.0,0.36137]
[1609475032128,0.00109662,29360.0,29358.0,0.46172176]
[1609475032329,0.36137,29359.0,29358.0,0.46172176]
[1609475032531,0.36137,29359.0,29358.0,1.71172176]
[1609475032732,0.36137,29359.0,29358.0,0.46172176]
[1609475032946,0.00109662,29360.0,29358.0,0.46172176]
[1609475033647,0.36137,29359.0,29358.0,0.46172176]
[1609475034352,0.00109662,29360.0,29358.0,0.46172176]
[1609475034847,0.36137,29359.0,29358.0,0.46172176]
[1609475035849,0.36137,29360.0,29358.0,0.46172176]
[1609475036052,0.175,29359.0,29358.0,0.46172176]
[1609475036249,0.53637,29359.0,29358.0,0.46172176]
[1609475036653,0.53637,29359.0,29358.0,0.01172176]
[1609475037350,0.53137,29359.0,29358.0,0.01172176]
[1609475040576,2.06487,29359.0,29358.0,0.01172176]
[1609475042081,2.43014114,29359.0,29358.0,0.01172176]
[1609475042277,2.95014114,29359.0,29358.0,0.01172176]
[1609475042473,3.95014114,29359.0,29358.0,0.01172176]
[1609475042671,3.43014114,29359.0,29358.0,0.01172176]
[1609475043131,3.39873842,29359.0,29358.0,0.01172176]
[1609475043329,3.06487,29359.0,29358.0,0.01172176]
[1609475043533,3.06693615,29359.0,29358.0,0.01172176]
[1609475043727,3.43220729,29359.0,29358.0,0.01172176]
[1609475043932,3.62040427,29359.0,29358.0,0.01172176]
[1609475044343,3.95634221,29359.0,29358.0,0.01172176]
[1609475044742,3.740701,29359.0,29358.0,0.01172176]
[1609475045244,4.07250402,29359.0,29358.0,0.01172176]
[1609475045542,3.55250402,29359.0,29358.0,0.01172176]
[1609475045842,4.07250402,29359.0,29358.0,0.01172176]
[1609475046543,3.55250402,29359.0,29358.0,0.01172176]
[1609475047345,3.5190359,29359.0,29358.0,0.01172176]
[1609475047542,3.55250402,29359.0,29358.0,0.01172176]
[1609475047744,4.07250402,29359.0,29358.0,0.01172176]
[1609475048169,4.07250402,29359.0,29358.0,0.01740943]
[1609475048370,4.72250402,29359.0,29358.0,0.01740943]
[1609475048568,4.07250402,29359.0,29358.0,0.01740943]
[1609475049071,3.740701,29359.0,29358.0,0.01740943]
[1609475049573,3.220701,29359.0,29358.0,0.01740943]
[1609475049773,3.55250402,29359.0,29358.0,0.01740943]
[1609475049987,3.5190359,29359.0,29358.0,0.01740943]
[1609475050178,3.18723288,29359.0,29358.0,0.01240943]
[1609475050474,3.787188,29359.0,29358.0,0.01240943]
[1609475050970,4.34065612,29359.0,29358.0,0.01240943]
[1609475051271,4.307188,29359.0,29358.0,0.01240943]
[1609475051471,3.97538498,29359.0,29358.0,0.01240943]
[1609475051670,4.5194531,29359.0,29358.0,0.01240943]
[1609475054594,3.9994531,29359.0,29358.0,0.01240943]
[1609475054796,4.33125612,29359.0,29358.0,0.01240943]
[1609475054998,4.85125612,29359.0,29358.0,0.01240943]
[1609475055192,4.5194531,29359.0,29358.0,0.01240943]
[1609475055799,4.48598498,29359.0,29358.0,0.01240943]
[1609475056197,3.26598498,29359.0,29358.0,0.01240943]
[1609475056399,3.597788,29359.0,29358.0,0.01240943]
[1609475056598,3.26728157,29359.0,29358.0,0.00740943]
[1609475057797,3.59908459,29359.0,29358.0,0.00740943]
[1609475058386,3.26728157,29359.0,29358.0,0.00740943]
[1609475058587,3.25728157,29359.0,29358.0,0.00740943]
[1609475058784,3.58908459,29359.0,29358.0,0.00740943]
[1609475059083,3.25728157,29359.0,29358.0,0.00740943]
[1609475059488,3.58908459,29359.0,29358.0,0.00740943]
[1609475059690,3.25728157,29359.0,29358.0,0.00740943]
[1609475060695,1.91318157,29359.0,29358.0,1.10740943]
[1609475060900,1.12365947,29359.0,29358.0,1.46877943]
[1609475061096,1.12360318,29359.0,29358.0,1.46877943]
[1609475061405,0.95770329,29364.0,29359.0,0.36137]
[1609475061698,0.12410329,29364.0,29363.0,4.11137]
[1609475061894,0.12410329,29364.0,29363.0,6.20411]
[1609475062101,0.6305,29372.0,29363.0,6.20411]
[1609475062102,0.5432518,29366.0,29363.0,6.32407]
[1609475062298,0.5432518,29366.0,29365.0,4.11137]
[1609475062507,0.12413284,29372.0,29365.0,4.31137]
[1609475062697,0.12413284,29372.0,29366.0,0.2]
[1609475062895,0.12413284,29372.0,29367.0,0.46137]
[1609475063119,0.6319,29377.0,29367.0,0.46137]
[1609475063120,0.12410512,29374.0,29367.0,0.46137]
[1609475063924,0.00413571,29368.0,29367.0,0.46137]
[1609475064124,0.00206728,29369.0,29367.0,1.83167]
[1609475064318,0.00206728,29369.0,29368.0,3.16137]
[1609475064524,0.00206728,29369.0,29368.0,4.36137]
[1609475065327,0.00206728,29369.0,29368.0,6.79667]
[1609475065523,0.00206712,29372.0,29368.0,6.79667]
[1609475065727,0.00206721,29374.0,29371.0,0.56137]
[1609475065924,0.88099703,29375.0,29374.0,3.75]
[1609475066124,0.788968,29382.0,29374.0,3.75]
[1609475066125,0.01032901,29377.0,29374.0,4.56137]
[1609475066324,0.0041316,29377.0,29376.0,0.36137]
[1609475066523,0.0041316,29377.0,29376.0,2.13637]
[1609475066824,0.0041316,29377.0,29376.0,1.13637]
[1609475067026,0.0041316,29377.0,29376.0,0.775]
[1609475067333,0.3655016,29377.0,29375.0,0.71831]
[1609475067626,0.36756759,29377.0,29371.0,0.1]
[1609475067926,0.00619759,29377.0,29371.0,0.1]
[1609475068122,1.0,29380.0,29371.0,0.1]
[1609475068427,0.00412976,29378.0,29371.0,0.1]
[1609475068650,0.8331,29373.0,29368.0,0.3]
[1609475068849,0.8331,29373.0,29369.0,0.36137]
[1609475069054,0.8331,29373.0,29372.0,0.5102]
[1609475069252,0.8331,29373.0,29372.0,0.6102]
[1609475069850,0.8331,29373.0,29372.0,0.59527]
[1609475070148,0.8331,29373.0,29372.0,0.95664]
[1609475072154,1.19447,29373.0,29372.0,0.59527]
[1609475072652,0.175,29373.0,29372.0,0.59527]
[1609475073110,0.53637,29373.0,29372.0,0.59527]
[1609475073304,0.8331,29374.0,29372.0,0.59527]
[1609475073501,0.36137,29373.0,29372.0,0.59527]
[1609475073706,0.8331,29373.0,29372.0,0.60736895]
[1609475074307,0.8331,29373.0,29372.0,0.96873895]
[1609475075509,0.8331,29373.0,29372.0,0.86873895]
[1609475075705,0.8331,29373.0,29372.0,0.50736895]
[1609475075909,1.38447,29373.0,29372.0,0.50736895]
[1609475077413,1.37947,29373.0,29372.0,0.50736895]
[1609475077714,1.48059382,29373.0,29372.0,0.50736895]
[1609475077908,1.37947,29373.0,29372.0,0.50736895]
[1609475078136,1.37947,29373.0,29372.0,0.01209895]
[1609475083666,1.37947,29373.0,29372.0,1.01209895]
[1609475083965,0.8281,29373.0,29372.0,2.61209895]
[1609475084167,0.8281,29373.0,29372.0,1.5687529]
[1609475084771,0.00119874,29374.0,29373.0,0.36137]
[1609475085069,0.00119874,29374.0,29373.0,3.92486]
[1609475085263,0.00119874,29374.0,29373.0,1.52486]
[1609475085467,0.00119874,29374.0,29373.0,2.89486]
[1609475085864,0.00119874,29374.0,29373.0,1.89486]
[1609475086168,0.00119874,29374.0,29373.0,1.16349]
[1609475086365,0.36256874,29374.0,29373.0,1.16349]
[1609475086672,0.00119874,29374.0,29373.0,1.0]
[1609475086865,0.00119874,29374.0,29373.0,1.36137]
[1609475087364,0.00115946,29374.0,29373.0,1.36137]
[1609475087767,0.83415946,29374.0,29373.0,1.36137]
[1609475088246,0.83415946,29374.0,29373.0,1.0]
[1609475088546,0.83415946,29374.0,29373.0,1.58637]
[1609475088850,0.00115946,29374.0,29373.0,1.58637]
[1609475089761,0.00115946,29374.0,29373.0,0.58637]
[1609475089956,0.00115946,29374.0,29373.0,0.36137]
[1609475090361,0.00115946,29374.0,29372.0,1.52219895]
[1609475090667,0.00115946,29374.0,29373.0,1.55665395]
[1609475090861,0.00115946,29374.0,29373.0,0.36137]
[1609475091063,0.00115946,29374.0,29373.0,1.36137]
[1609475091558,0.00529778,29374.0,29373.0,0.36137]
[1609475091762,0.83839778,29374.0,29372.0,1.52219895]
[1609475092164,0.84047057,29374.0,29373.0,0.36137]
[1609475092358,0.83425946,29374.0,29373.0,0.36137]
[1609475092559,0.83425946,29374.0,29372.0,1.52219895]
[1609475092962,0.83425946,29374.0,29373.0,0.36137]
[1609475093186,0.8331,29374.0,29373.0,1.36137]
[1609475093388,0.8331,29374.0,29373.0,1.55665395]
[1609475093689,0.12159747,29374.0,29373.0,2.01665395]
[1609475094088,0.00117691,29375.0,29373.0,2.01665395]
[1609475094288,0.00117691,29375.0,29374.0,2.35]
[1609475094487,0.00117691,29375.0,29374.0,2.71137]
[1609475094687,0.1227892,29375.0,29374.0,2.13637]
[1609475094987,0.00117691,29375.0,29374.0,2.13637]
[1609475095187,0.12279426,29375.0,29374.0,2.13637]
[1609475095592,0.12279426,29375.0,29374.0,1.13637]
[1609475095992,0.12279426,29375.0,29374.0,0.775]
[1609475096193,0.36137,29374.0,29373.0,1.6802]
[1609475097092,0.12184023,29374.0,29373.0,1.6802]
[1609475097294,0.27684023,29374.0,29373.0,1.6802]
[1609475097490,0.63821023,29374.0,29373.0,0.6802]
[1609475098203,0.12184023,29374.0,29373.0,2.61972395]
[1609475098394,0.12184023,29374.0,29373.0,2.66530395]
[1609475098592,0.12184023,29374.0,29373.0,3.66530395]
[1609475098815,0.07403737,29377.0,29376.0,1.46137]
[1609475099020,0.78918977,29382.0,29376.0,2.66728]
[1609475099221,0.12207936,29381.0,29377.0,1.0]
[1609475099416,0.12207039,29380.0,29378.0,0.95665395]
[1609475099719,0.12207001,29381.0,29379.0,0.5101]
[1609475099917,0.12207001,29381.0,29380.0,0.36137]
[1609475100313,0.12207001,29381.0,29380.0,0.46334718]
[1609475100715,0.12207001,29381.0,29380.0,0.36137]
[1609475101814,0.72207001,29381.0,29380.0,0.36137]
[1609475102018,0.12207001,29381.0,29380.0,0.36137]
[1609475102519,0.12207001,29381.0,29379.0,0.5101]
[1609475102717,0.80707001,29381.0,29380.0,0.36137]
[1609475102919,0.80707001,29381.0,29379.0,0.5101]
[1609475103381,0.12192915,29380.0,29379.0,0.5101]
[1609475103580,0.685,29381.0,29379.0,0.87147]
[1609475103781,0.92192932,29380.0,29379.0,0.5101]
[1609475103981,0.32192932,29380.0,29379.0,0.87147]
[1609475104381,0.12192932,29380.0,29379.0,0.87147]
[1609475104581,0.12195241,29381.0,29379.0,0.87147]
[1609475104782,0.12195241,29381.0,29379.0,0.5101]
[1609475106887,0.12195241,29381.0,29380.0,0.36137]
[1609475107088,0.12195241,29381.0,29379.0,0.64492]
[1609475107286,0.36137,29380.0,29379.0,0.64492]
[1609475107486,0.65637,29380.0,29379.0,0.64492]
[1609475108216,0.48327459,29380.0,29379.0,0.64492]
[1609475108615,0.12190459,29380.0,29379.0,0.64492]
[1609475109320,0.12191255,29381.0,29379.0,0.70277]
[1609475109515,0.1219132,29380.0,29379.0,1.06414]
[1609475110118,0.12194481,29381.0,29379.0,0.70277]
[1609475110317,1.49898731,29382.0,29379.0,0.70277]
[1609475110318,0.12194599,29380.0,29379.0,0.70277]
[1609475110520,0.12194599,29380.0,29379.0,1.13805395]
[1609475110716,0.12194599,29380.0,29379.0,1.49942395]
[1609475110923,0.66608731,29382.0,29380.0,0.36137]
[1609475110924,0.1221959,29381.0,29380.0,0.36137]
[1609475112719,0.1221959,29381.0,29380.0,1.86137]
[1609475112921,0.1221959,29381.0,29380.0,3.25137]
[1609475113524,0.12336084,29381.0,29380.0,3.25137]
[1609475113739,0.12336084,29381.0,29380.0,5.50137]
[1609475114137,0.12336084,29381.0,29380.0,3.25137]
[1609475114541,0.12336084,29381.0,29380.0,3.93127]
[1609475114744,0.12336084,29381.0,29380.0,4.93127]
[1609475114745,0.00737485,29381.0,29380.0,4.93127]
[1609475114944,0.00530485,29381.0,29380.0,4.93127]
[1609475115941,0.00116494,29381.0,29380.0,4.93127]
[1609475116341,0.00116494,29381.0,29380.0,3.93127]
[1609475116747,0.00116494,29381.0,29380.0,2.43127]
[1609475117543,0.00116494,29381.0,29380.0,2.53896]
[1609475117741,0.00116494,29381.0,29380.0,2.6416928]
[1609475117945,0.66441923,29382.0,29381.0,0.8]
[1609475118232,0.66441923,29382.0,29381.0,1.77637]
[1609475118432,0.66441923,29382.0,29381.0,0.97637]
[1609475119741,0.66441923,29382.0,29381.0,0.46357855]
[1609475119742,0.67476304,29382.0,29381.0,0.46357855]
[1609475120239,0.67476315,29382.0,29381.0,0.46357855]
[1609475120440,0.67062555,29382.0,29381.0,0.48653028]
[1609475120640,0.88355677,29382.0,29381.0,0.48653028]
[1609475121339,0.66355677,29382.0,29381.0,0.48653028]
[1609475121642,0.66976296,29382.0,29381.0,0.48653028]
[1609475121838,0.66562542,29382.0,29381.0,0.48653028]
[1609475122035,0.66562542,29382.0,29381.0,0.38432173]
[1609475122635,0.66976311,29382.0,29381.0,0.38432173]
[1609475123037,0.66976311,29382.0,29381.0,0.48510079]
[1609475123765,0.66562542,29382.0,29381.0,0.48510079]
[1609475124367,0.87562542,29382.0,29381.0,0.38432173]
[1609475125368,0.86941923,29382.0,29381.0,0.48543774]
[1609475125868,0.87562714,29382.0,29381.0,0.48543774]
[1609475127372,0.66562714,29382.0,29381.0,1.85457169]
[1609475127574,0.66562714,29382.0,29381.0,5.60457169]
[1609475127778,0.66355774,29382.0,29381.0,5.60457169]
[1609475128069,0.66355774,29382.0,29381.0,6.37957169]
[1609475128475,0.66355774,29382.0,29381.0,7.37957169]
[1609475128672,0.65941923,29382.0,29381.0,7.27845568]
[1609475129196,0.65941923,29382.0,29381.0,7.78835568]
[1609475129994,0.65941923,29382.0,29381.0,4.03835568]
[1609475131698,0.65941923,29382.0,29381.0,3.84307173]
[1609475131896,0.65941923,29382.0,29381.0,4.03835568]
[1609475132298,0.65941923,29382.0,29381.0,3.03835568]
[1609475132597,0.65941923,29382.0,29381.0,2.84307173]
[1609475133759,0.65941923,29382.0,29381.0,3.84307173]
[1609475134257,0.65941923,29382.0,29381.0,2.84307173]